Cogmind - Beta 15 @@@ ROGUE MODE // 2025.05.28 @ 23:44:37 Player: Spitfire Result: Destroyed by S-10 Pest with Light Assault Rifle Performance ------------- Evolutions (0) 0 Regions Visited (1) 200 Robots Destroyed (14) 70 Value Destroyed (268) 268 Prototype IDs (2) 40 Alien Tech Used (0) 0 Bonus (0) 0 TOTAL SCORE: 578 Bonus ------- None Cogmind --------- Core Integrity 0/250 Matter 300/300 Energy 95/100 System Corruption 0% Temperature Cool (0) Movement Core (50) Location -10/Materials Parts ------- > --- POWER (1) -------- (None) > --- PROPULSION (2) --- (None) > --- UTILITY (2) ------ Structural Scanner > --- WEAPON (2) ------- Medium Laser > --- INVENTORY (5) ---- Ion Engine High-capacity Battery (250) Grenade Launcher Datajack Peak State ------------ > --- POWER ------------ Light Ion Engine > --- PROPULSION ------- Wheel Compact Wheel > --- UTILITY ---------- Small Storage Unit Visual Processing Unit > --- WEAPON ----------- EM Pulse Gun Medium Laser > --- INVENTORY -------- Ion Engine Light Ion Engine Small Laser [Rating: 8] Favorites ----------- Power Ion Engine Engine Ion Engine Propulsion Compact Wheel Wheel Compact Wheel Hover Unit Hover Unit Utility Small Storage Unit Device Structural Scanner Storage Small Storage Unit Processor Visual Processing Unit Weapon Medium Laser Energy Gun Medium Laser Ballistic Gun Light Assault Rifle Build | -11 -10 ------- Run | Yrd Mat Slots Evolved . | . . Power . | . . Propulsion . | . . Utility . | . . Weapon . | . . Parts Attached 14 | 5 9 Power 2 | . 2 Engine 2 | . 2 Core . | . . Reactor . | . . Propulsion 4 | 2 2 Treads . | . . Leg . | . . Wheel 2 | 2 . Hover 2 | . 2 Flight . | . . Utility 3 | 1 2 Device 1 | . 1 Storage 1 | 1 . Processor 1 | . 1 Hackware . | . . Protection . | . . Artifact . | . . Weapon 5 | 2 3 Energy Gun 4 | 2 2 Energy Cannon . | . . Ballistic Gun 1 | . 1 Ballistic Cannon . | . . Launcher . | . . Special Weapon . | . . Impact Weapon . | . . Slashing Weapon . | . . Piercing Weapon . | . . Special Melee Weapon . | . . Unidentified Prototypes . | . . Parts Lost 9 | . 9 Power 2 | . 2 Propulsion 4 | . 4 Utility . | . . Weapon 3 | . 3 Highest Loss Streak 6 | . 6 To Critical Strikes . | . . Average Backups 3 | 2 3 Power 1 | 1 1 Propulsion . | . . Utility . | . . Weapon 1 | . 1 Tool/Special . | . . Unused Backups 6 | . 6 Power 3 | . 3 Propulsion . | . . Utility 1 | . 1 Weapon 1 | . 1 Tool/Special 1 | . 1 Average Slot Usage (%) 81 | . 81 Engine 8 | . 8 Wheel 21 | . 21 Hover 1 | . 1 Device 8 | . 8 Storage 13 | . 13 Energy Gun 22 | . 22 Ballistic Gun 3 | . 3 Peak Build Rating 8 | 5 8 Average Rating 5 | 3 5 On Entrance 2 | . 5 Naked Turns . | . . Heaviest Build 14 | 9 14 Greatest Support 26 | 26 26 Greatest Overweight (x) 4 | . 4 Average Overweight (x) . | . . Largest Inventory Capacity 8 | 8 8 Average Capacity 7 | 6 7 Most Carried 7 | 3 7 Average Carried 3 | 2 3 Final Capacity 8 | 8 5 Final Carried 4 | 3 4 Class Distribution -------------------- 100% | Mutant Dominant Class ---------------- Mutant | -10/Materials Resources | -11 -10 ----------- Run | Yrd Mat Matter Collected 320 | 237 83 Remotely . | . . Salvage Created 463 | 75 388 Parts 26 | . 26 Haulers Intercepted . | . . Recyclers Shooed 2 | . 2 Parts Field Recycled . | . . Retrieved Matter . | . . Parts Self-Destructed . | . . Prevented . | . . Kills | -11 -10 ------- Run | Yrd Mat Combat Hostiles Destroyed 9 | . 9 Guns 9 | . 9 Classes Destroyed 5 | 1 4 Worker 1 | . 1 Recycler 2 | 1 1 Watcher 2 | . 2 Swarmer 4 | . 4 Grunt 5 | . 5 Best Kill Streak 4 | 1 4 Combat Bots Only 3 | . 3 Max Kills in Single Turn 1 | 1 1 Gunslinging . | . . Exploded . | . . Melee . | . . Uniques/NPCs Destroyed . | . . Combat | -11 -10 -------- Run | Yrd Mat Hostile Shots Fired 118 | . 118 Missed 28 | . 28 Hits 90 | . 90 Projectile 90 | . 90 Critical Strikes 1 | . 1 Damage Taken 873 | . 873 Core 255 | . 255 Absorbed by Shields . | . . Core Remaining (%) 100 | 100 . Volleys Fired 76 | 11 65 Largest 2 | 2 2 Hottest 90 | 90 90 Shots Fired 129 | 15 114 Gun 129 | 15 114 Cannon . | . . Launcher . | . . Special . | . . Kinetic 18 | . 18 Thermal 84 | 11 73 Explosive . | . . Electromagnetic 27 | 4 23 Robot Hit Streak 8 | 4 8 Robot Miss Streak 6 | 2 6 Penetration Max . | . . Secondary Targets . | . . Shots Hit Robots 70 | 9 61 Core Hits 23 | 2 21 Critical Kills . | . . Critical Parts Destroyed . | . . Critical Strikes 5 | 3 2 Burn 5 | 3 2 Melee Attacks . | . . Impact . | . . Slashing . | . . Piercing . | . . Sneak Attacks . | . . Combat Hostiles . | . . Follow-up Attacks . | . . Damage Inflicted 883 | 109 774 Guns 883 | 109 774 Cannons . | . . Explosions . | . . Melee . | . . Ramming . | . . Kinetic 115 | . 115 Thermal 530 | 73 457 Explosive . | . . Electromagnetic 238 | 36 202 Impact . | . . Slashing . | . . Piercing . | . . Highest Corruption . | . . Average Corruption . | . . Corruption Purged . | . . Corruption Blocked . | . . Overload Shots . | . . Overflow Damage . | . . Projectiles . | . . Explosions . | . . Melee . | . . Knockbacks . | . . Impact . | . . Kinetic . | . . Secondary . | . . Self-Inflicted Damage . | . . Shots . | . . Rammed . | . . Targets Rammed . | . . Kicked . | . . Crushed . | . . Highest Temperature 305 | 30 305 Average Temperature 87 | 14 91 Received Heat Transfer 237 | . 237 Siege Activations . | . . Martial Activations . | . . Shielding Activations . | . . Robots Disrupted . | . . Combat Hostiles . | . . Robots Corrupted . | . . Combat Hostiles . | . . Parts Fried . | . . Impact Corruptions . | . . Robots Melted . | . . Combat Hostiles . | . . Parts Melted 1 | . 1 Heat Transferred 1937 | 444 1493 Parts Sabotaged . | . . Parts Stolen . | . . Parts Stripped . | . . Power Chain Reactions . | . . Alert | -11 -10 ------- Run | Yrd Mat Maximum Alert Level . | . . Low Security (%) 100 | 100 100 Level 1 . | . . Level 2 . | . . Level 3 . | . . Level 4 . | . . Level 5 . | . . High Security . | . . Max Security . | . . Peak Influence 67 | 5 67 Initial . | . . Average 20 | 1 23 Influence Increases 283 | 5 278 Destroy 0b10 Robot/C 180 | . 180 Destroy 0b10 Robot/NC 25 | 5 20 Destroy Leader 34 | . 34 Successful Hack 14 | . 14 Lose Combat Pursuer 30 | . 30 Influence Decreases 266 | 5 261 Time Decay 204 | 5 199 Lost Part 62 | . 62 Squads Dispatched 1 | . 1 Investigation . | . . Extermination . | . . Reinforcement 1 | . 1 Assault . | . . Garrison . | . . Intercept . | . . Searches Triggered . | . . Construction Impeded . | . . Haulers Reinforced . | . . Active Scanning Responses . | . . Cargo Convoy Interrupts . | . . Stealth | -11 -10 --------- Run | Yrd Mat Distress Signals 2 | . 2 Communications Jammed . | . . Distress Signals . | . . Times Spotted 17 | . 17 Peak Tracking Total 3 | . 3 Tactical Retreats 2 | . 2 Traps | -11 -10 ------- Run | Yrd Mat Traps Triggered . | . . Indirectly . | . . Trap Hack Attempts . | . . Triggered . | . . Disarmed . | . . Reprogrammed . | . . Reused . | . . Traps Extracted . | . . Installed . | . . Triggered . | . . Machines | -11 -10 ---------- Run | Yrd Mat Machines Disabled . | . . Max in Single Turn . | . . Machines Repaired . | . . Machines Dismantled . | . . Machines Sabotaged . | . . Overloaded Fab Kills . | . . Hacking | -11 -10 --------- Run | Yrd Mat Machines Accessed 3 | . 3 Terminals 2 | . 2 Fabricators . | . . Repair Stations . | . . Recycling Units 1 | . 1 Scanalyzers . | . . Garrison Access . | . . Total Hacks 9 | . 9 Successful 6 | . 6 Failed 3 | . 3 Catastrophic 1 | . 1 Database Lockouts . | . . Manual 4 | . 4 Terminals 6 | . 6 Fabricators . | . . Repair Stations . | . . Recycling Units 3 | . 3 Scanalyzers . | . . Garrison Access . | . . Terminal Hacks 3 | . 3 Prototype ID Bank 1 | . 1 Locate Traps 1 | . 1 Zone Layout 1 | . 1 Fabricator Hacks . | . . Repair Station Hacks . | . . Recycling Unit Hacks 1 | . 1 Report Inventory 1 | . 1 Scanalyzer . | . . Garrison Access Hacks . | . . Unauthorized Hacks 2 | . 2 Terminals 1 | . 1 Botnet 1 | . 1 Fabricators . | . . Repair Stations . | . . Recycling Units 1 | . 1 Recyclers 1 | . 1 Scanalyzers . | . . Garrison Access . | . . Data Cores Recovered . | . . Used . | . . Hacking Detections 3 | . 3 Full Trace Events . | . . Feedback Events . | . . Feedback Blocked . | . . Robot Schematics Acquired . | . . Robots Built . | . . Authchips . | . . Time . | . . Total Robot Build Rating . | . . Part Schematics Acquired . | . . Parts Built . | . . Authchips . | . . Time . | . . Total Part Build Rating . | . . Parts Repaired . | . . Time . | . . Parts Recycled . | . . Recycled Matter . | . . Retrieved Matter . | . . Retrieved Components . | . . Parts Scanalyzed . | . . Part Schematics Acquired . | . . Parts Damaged . | . . Bothacking | -11 -10 ------------ Run | Yrd Mat Used RIF Installer . | . . Robots Hacked . | . . Non-combat . | . . Combat . | . . Robot Hacks Applied . | . . Relay Couplers Released . | . . Fabnet Peak Effective % . | . . Robots Rewired . | . . Allies Hacked . | . . Hacks Repelled . | . . Allies | -11 -10 -------- Run | Yrd Mat Total Allies . | . . Largest Group . | . . Highest-Rated Group . | . . Highest-Rated Ally . | . . Total Orders . | . . Ally Attacks . | . . Total Damage . | . . Kills . | . . Allies Corrupted . | . . Allies Melted . | . . Intel | -11 -10 ------- Run | Yrd Mat Active Infowar (turns) 403 | . 403 Optics 36 | . 36 Structural 367 | . 367 Robot Analysis Total . | . . Derelict Logs Recovered . | . . Drone Launches . | . . Drone Recoveries . | . . Exploration | -11 -10 ------------- Run | Yrd Mat Turns Passed 657 | 69 588 Spaces Moved 419 | 37 382 Core 44 | 3 41 Treads . | . . Legs . | . . Wheels 367 | 34 333 Hover 8 | . 8 Flight . | . . Fastest Speed 50 | 50 50 Average Speed 96 | 86 97 Slowest Speed 250 | 90 250 Overloaded Moves . | . . Propulsion Burnouts . | . . Robots Hopped . | . . Potential Cave-ins . | . . Cave-ins Triggered . | . . Exploration Rate (%) 29 | 4 54 Regions Visited 1 Branch Regions . Pre-discovered Areas . | . . Known Exits Taken . | . . Unknown Exits Taken 1 | 1 . Scrap Searched . | . . Spaces Dug . | . . Terrain Destroyed . | . . Melee . | . . Projectile . | . . AOE . | . . Terrain Rammed . | . . Walls Destroyed . | . . Machines Disabled . | . . Actions | -11 -10 --------- Run | Yrd Mat Total 541 | 56 485 Wait 17 | . 17 Move 418 | 36 382 Hop . | . . Pick Up 10 | 4 6 Fast Attach 10 | 4 6 Attach 4 | 1 3 Detach 1 | . 1 Swap . | . . Drop 5 | . 5 Fire 76 | 11 65 Melee . | . . Ram . | . . Kick . | . . Crush . | . . Escape Stasis . | . . Rewire . | . . Trap . | . . Miscellaneous . | . . Route ------- -11/Scrapyard -10/Materials (discovered 2 exits: [*Mat] / [*Min]) History --------- Turn | Location | Event 43 | -11/Scrapyard | Discovered new exit (range 12) 70 | -11/Scrapyard | Entered Materials 236 | -10/Materials | Discovered new exit (range 11) 312 | -10/Materials | Build established: Mutant 438 | -10/Materials | Discovered new exit (range 16) 505 | -10/Materials | Core integrity fell below 50% 591 | -10/Materials | Lost 6 parts (4n2w) 639 | -10/Materials | Core integrity fell below 20% 658 | -10/Materials | Destroyed by S-10 Pest with Light Assault Rifle Last Messages --------------- 00503_ Acquired Hover Unit. 00510_ G-47 Trooper suffers critical hit (Burn). 00512_ Com. Wheel destroyed. 00513_ G-47 Trooper heat damages Lgt. Nuclear Core. 00514_ G-47 Trooper heat short circuits Lgt. Nuclear Core. 00514_ Acquired Hover Unit. 00524_ R-06 Scavenger collects Lgt. Ion Engine. 00539_ Hover Unit destroyed. 00551_ Med. Laser destroyed. 00558_ G-34 Mercenary destroyed. 00560_ Lgt. Assault Rifle destroyed. 00565_ G-47 Trooper destroyed. 00567_ Acquired 17 matter. 00570_ R-06 Scavenger collects Sml. Laser. 00575_ R-06 Scavenger collects Particle Gun. 00635_ Ion Engine destroyed. 00642_ S-10 Pest destroyed. 00644_ Dropped Sml. Storage Unit. 00656_ K-01 Serf destroyed. [Achievement: This Is Interesting...] Map ----- +----------------------------------------------------+ | ????## ## #######???????????????????????? | | ????## < ## ##????????????????????????????? | | ????## ## ##????????????????????????????? | | ????## ## ##+########??????????????????????? | | ????### ### # || ! #??????????????????????? | | ######## #### # || #??????????????????????? | | # """ # #### # | #??????????????????????? | | # "Y" #! # #??????????????????????? | | # + + """ #??????????????????????? | | # #%==""" # """ "Y" #??????????????????????? | | # """ #= """ # """ """r#??????????????????????? | | # """ # """ # #??????????????????????? | | # """ # ########+##??????????????????????? | | # + ###?#### ####????????????????????? | | ######## """ ######## ####????????????????????? | | # ## """ ##### ##????????????????????? | | # # """= % ##????????????????????? | | # + %[ " ##????????????????????? | | # # =! ##????????????????????? | | # ### [% ##### ##????????????????????? | | # ### %############ ###????????????????????? | | #| !### # ## ###?????? ???????????? | | # ### # ## ##???????#+#???????????? | | # ### # ""T"" ## ##??????## #???????????? | | # + # """"" ##=##??????## ????????????? | | # ### # !##@####????## ????????????? | | # ### ####+####### ####??#### ########????? | | ######### #???## ##??####/####### ? | | # #?## #???## ##??## # ? | | # #### #???## ##??## # ? | | # ^+ ### ##???## ##??## # ? | | # "" # #### #?# #????## ##??## # """ ? | | # "T # #### #?# #????## ##??## # """ ? | | # "" # #??# #?# #????## ##??## # """ ? | | # # #??# #?# #????## s##??## # ? | | ###### #??# ###+####?## ###### ####### | | ???###+#### # #?## s#########/############ | | ???# # # #?## r % %* # | | ???# # # #?## # [ | | ???# """ + + #?## % ! + ! | | ???# """ # # #?################# ####### | | ???# """ # # #?######## # ####### | | ???# # ########???????## "T" # ##????? | | ???###+#### #??????????????## + ##????? | | ?????# #??# #??????????????## # ##????? | | ?????# #??# ########???????## # ####### | | ?????# #### ## #???????## """ # ####### | | ?????# #???????## """ # # | | ?????# #???????## """ # # | | ?????# #???????## # % #| | +----------------------------------------------------+ Best States ------------- Heat Dissipation 25 Energy Generation 10 Energy Capacity 250 Matter Stores 300 Matter Capacity 300 Sight Range 18 Terrain Scan Density 10 Evasion (%) 50 Item Schematics ----------------- None Robot Schematics ------------------ None Fabricated ------------ Nothing Repaired ---------- Nothing Alien Tech Used ----------------- None Achievements -------------- This Is Interesting... Challenges ------------ None Game ------ Seed ThermalSpacefoldMultirail Manual? 0 Play Time 00:08:51 Cumulative 45.0 hours Start 2025.05.28 @ 23:37:31 End 2025.05.28 @ 23:44:37 Sessions 1 Manual Loads 0 Difficulty Rogue Special Mode None Game No. 26 Rogue 26 Adventurer 0 Explorer 0 Win Type - Total 4 Types 4/0/0/0/0/0/0/0/0/0 Lore% 29 Gallery% 38 Achievement% 30 Wizard Run 0 Options --------- Layout 0 ASCII 0 Keyboard 0 Movement Mouse Keybinds 0 Fullscreen 2 Font 18/Terminus Map View 76x50 Zoom Use 0% Tactical HUD 1 Map Filters NONE Filters NONE Steam 1 RUN: 5724a623-64ae-4459-8b96-aa57a3fa981f